fUSD/lending_fUSD_20250906
["ID","MTS","AMOUNT","RATE_DAILY","PERIOD"]
[383823464,1757133054005,-150.0,0.00069999,120]
[383823465,1757133054015,-151.0,0.00069999,120]
[383823466,1757133054024,-479.0,0.00069999,120]
[383823467,1757133054034,-150.0,0.00069999,120]
[383823468,1757133054043,-437.3,0.00069999,120]
[383823469,1757133054053,-437.3,0.00069999,120]
[383823470,1757133054062,-151.0,0.00069999,120]
[383823471,1757133054072,-437.3,0.00069999,120]
[383823472,1757133054082,-437.3,0.00069999,120]
[383823473,1757133054091,-546.24,0.00069999,120]
[383823474,1757133054101,-437.3,0.00069999,120]
[383823475,1757133054112,-546.24,0.00069999,120]
[383823476,1757133054121,-437.3,0.00069999,120]
[383823477,1757133054132,-546.24,0.00069999,120]
[383823478,1757133054143,-400.0,0.00069999,120]
[383823479,1757133054154,-437.3,0.00069999,120]
[383823480,1757133054164,-151.0,0.00069999,120]
[383823481,1757133054174,-546.24,0.00069999,120]
[383823482,1757133054184,-400.0,0.00069999,120]
[383823483,1757133054194,-437.3,0.00069999,120]
[383823484,1757133054204,-546.24,0.00069999,120]
[383823485,1757133054214,-400.0,0.00069999,120]
[383823486,1757133054224,-437.3,0.00069999,120]
[383823487,1757133054234,-546.24,0.00069999,120]
[383823488,1757133054244,-400.0,0.00069999,120]
[383823489,1757133054254,-437.3,0.00069999,120]
[383823490,1757133054263,-150.0,0.00069999,120]
[383823491,1757133054273,-546.24,0.00069999,120]
[383823492,1757133054283,-400.0,0.00069999,120]
[383823493,1757133054292,-437.3,0.00069999,120]
[383823494,1757133054302,-546.24,0.00069999,120]
[383823495,1757133054312,-518.34150358,0.00069999,120]
[383823496,1757133054322,-437.3,0.00069999,120]
[383823497,1757133054333,-546.24,0.00069999,120]
[383823498,1757133054342,-437.3,0.00069999,120]
[383823499,1757133054356,-546.24,0.00069999,120]
[383823500,1757133054366,-437.3,0.00069999,120]
[383823501,1757133054376,-546.24,0.00069999,120]
[383823502,1757133054386,-437.3,0.00069999,120]
[383823503,1757133054396,-546.24,0.00069999,120]
[383823504,1757133054406,-437.3,0.00069999,120]
[383823505,1757133054415,-546.24,0.00069999,120]
[383823506,1757133054426,-437.3,0.00069999,120]
[383823507,1757133054436,-546.24,0.00069999,120]
[383823508,1757133054447,-437.3,0.00069999,120]
[383823509,1757133054457,-546.24,0.00069999,120]
[383823510,1757133054467,-437.487982,0.00069999,120]
[383823511,1757133054477,-400.0,0.00069999,120]
[383823512,1757133054487,-546.24,0.00069999,120]
[383823513,1757133054497,-150.0,0.00069999,120]
[383823514,1757133054506,-548.1,0.00069999,120]
[383823515,1757133054517,-546.24,0.00069999,120]
[383823516,1757133054527,-546.24,0.00069999,120]
[383823517,1757133054537,-546.24,0.00069999,120]
[383823518,1757133054548,-546.47713283,0.00069999,120]
[383823519,1757133054609,-400.0,0.00069999,120]
[383823520,1757133054619,-150.87805407,0.00069999,120]
[383823521,1757133054629,-400.0,0.00069999,120]
[383823522,1757133054639,-400.0,0.00069999,120]
[383823523,1757133054648,-412.20983503,0.00069999,120]
[383823524,1757133054657,-400.0,0.00069999,120]
[383823525,1757133054667,-400.0,0.00069999,120]
[383823526,1757133054676,-400.0,0.00069999,120]
[383823527,1757133054686,-400.0,0.00069999,120]
[383823528,1757133054696,-400.0,0.00069999,120]
[383823529,1757133054706,-400.0,0.00069999,120]
[383823530,1757133054715,-1000.0,0.00069999,120]
[383823531,1757133054724,-401.17737616,0.00069999,120]
[383823532,1757133054734,-1000.0,0.00069999,120]
[383823533,1757133054743,-493.93923155,0.00069999,120]
[383823535,1757133054753,-400.0,0.00069999,120]
[383823536,1757133054763,-400.0,0.00069999,120]
[383823537,1757133054772,-519.75674334,0.00069999,120]
[383823539,1757133054781,-154.0,0.0007,30]
[383823540,1757133054790,-154.0,0.0007,30]
[383823541,1757133054800,-251.10647376,0.0007,23]
[383823542,1757133054814,-25300.318177,0.0007,56]
[383823543,1757133054824,-3052080.16635079,0.0007,15]
[383823544,1757133054833,-198.17,0.0007,60]
[383823545,1757133054843,-19645.90728619,0.0007,120]
[383823546,1757133054852,-2092.5890717,0.0007,120]
[383823547,1757133054862,-399401.19017841,0.0007,120]
[383823548,1757133054871,-290.3405592,0.0007,120]
[383823549,1757133054880,-254.17442531,0.0007,30]
[383823550,1757133054896,-200.0,0.0007,30]
[383823551,1757133054908,-1116524.5793237,0.0007,15]
[383823552,1757133054917,-200.0,0.0007,30]
[383823553,1757133054927,-154.0,0.0007,120]
[383823554,1757133054936,-154.0,0.0007,120]
[383823555,1757133054946,-1331.14773832,0.0007,120]
[383823556,1757133054955,-656.01675335,0.0007,120]
[383823557,1757133054965,-151.0,0.0007,120]
[383823558,1757133054974,-151.0,0.0007,120]
[383823559,1757133054984,-151.0,0.0007,120]
[383823560,1757133054993,-151.0,0.0007,120]
[383823561,1757133055003,-151.0,0.0007,120]
[383823562,1757133055012,-151.0,0.0007,120]
[383823563,1757133055022,-151.0,0.0007,120]
[383823564,1757133055031,-216.6992,0.0007,120]
[383823565,1757133055041,-151.0,0.0007,120]
[383823566,1757133055050,-151.0,0.0007,120]
[383823567,1757133055060,-223.993119,0.0007,120]
[383823568,1757133055069,-151.0,0.0007,120]
[383823569,1757133055078,-153.45224,0.0007,120]
[383823570,1757133055088,-5000.0,0.0007,120]
[383823571,1757133055097,-151.0,0.0007,120]
[383823572,1757133055106,-151.0,0.0007,120]
[383823573,1757133055116,-151.0,0.0007,120]
[383823574,1757133055126,-151.0,0.0007,120]
[383823575,1757133055135,-1224.0,0.0007,120]
[383823576,1757133055144,-1224.0,0.0007,120]
[383823577,1757133055154,-151.0,0.0007,120]
[383823578,1757133055163,-1224.0,0.0007,120]
[383823579,1757133055173,-250.325379,0.0007,120]
[383823580,1757133055182,-1224.0,0.0007,120]
[383823581,1757133055191,-240.0,0.0007,120]
[383823582,1757133055201,-1224.0,0.0007,120]
[383823583,1757133055211,-154.0,0.0007,120]
[383823584,1757133055220,-1224.0,0.0007,120]
[383823585,1757133055229,-152.0,0.0007,120]
[383823586,1757133055241,-152.0,0.0007,120]
[383823587,1757133055250,-152.0,0.0007,120]
[383823588,1757133055260,-345.966774,0.0007,120]
[383823589,1757133055269,-345.966774,0.0007,120]
[383823590,1757133055279,-345.966774,0.0007,120]
[383823591,1757133055288,-345.966774,0.0007,120]
[383823592,1757133055298,-345.966774,0.0007,120]
[383823593,1757133055307,-345.966774,0.0007,120]
[383823594,1757133055317,-345.966774,0.0007,120]
[383823595,1757133055326,-345.966774,0.0007,120]
[383823596,1757133055335,-345.966774,0.0007,120]
[383823597,1757133055345,-345.966774,0.0007,120]
[383823598,1757133055358,-345.966774,0.0007,120]
[383823599,1757133055367,-345.966774,0.0007,120]
[383823600,1757133055376,-345.966774,0.0007,120]
[383823601,1757133055385,-345.966774,0.0007,120]
[383823602,1757133055395,-345.966774,0.0007,120]
[383823603,1757133055404,-345.966764,0.0007,120]
[383823604,1757133055414,-151.0,0.0007,120]
[383823605,1757133055423,-151.0,0.0007,120]
[383823606,1757133055433,-151.0,0.0007,120]
[383823607,1757133055443,-151.0,0.0007,120]
[383823608,1757133055453,-151.0,0.0007,120]
[383823609,1757133055462,-151.0,0.0007,120]
[383823610,1757133055472,-601.76855,0.0007,120]
[383823611,1757133055481,-601.76855,0.0007,120]
[383823612,1757133055490,-601.76855,0.0007,120]
[383823613,1757133055500,-601.76855,0.0007,120]
[383823614,1757133055510,-601.76855,0.0007,120]
[383823615,1757133055520,-601.76855,0.0007,120]
[383823616,1757133055529,-601.76855,0.0007,120]
[383823617,1757133055539,-601.76855,0.0007,120]
[383823618,1757133055548,-601.76855,0.0007,120]
[383823619,1757133055558,-601.76855,0.0007,120]
[383823620,1757133055567,-601.76855,0.0007,120]
[383823621,1757133055576,-151.0,0.0007,120]
[383823622,1757133055586,-601.76855,0.0007,120]
[383823623,1757133055596,-151.0,0.0007,120]
[383823624,1757133055606,-151.0,0.0007,120]
[383823625,1757133055615,-151.0,0.0007,120]
[383823626,1757133055625,-151.0,0.0007,120]
[383823627,1757133055634,-151.0,0.0007,120]
[383823628,1757133055643,-157.658669,0.0007,120]
[383823629,1757133055653,-226.56,0.0007,120]
[383823630,1757133055662,-151.0,0.0007,120]
[383823631,1757133055672,-151.0,0.0007,120]
[383823632,1757133055682,-151.0,0.0007,120]
[383823633,1757133055691,-151.0,0.0007,120]
[383823634,1757133055701,-151.0,0.0007,120]
[383823635,1757133055711,-151.0,0.0007,120]
[383823636,1757133055720,-151.0,0.0007,120]
[383823637,1757133055730,-151.0,0.0007,120]
[383823638,1757133055740,-151.0,0.0007,120]
[383823639,1757133055750,-448.448159,0.0007,120]
[383823640,1757133055759,-448.448159,0.0007,120]
[383823641,1757133055770,-448.448159,0.0007,120]
[383823642,1757133055780,-448.448159,0.0007,120]
[383823643,1757133055790,-448.448159,0.0007,120]
[383823644,1757133055799,-448.448159,0.0007,120]
[383823645,1757133055809,-448.448159,0.0007,120]
[383823646,1757133055818,-448.448162,0.0007,120]
[383823647,1757133055828,-151.0,0.0007,120]
[383823648,1757133055838,-151.0,0.0007,120]
[383823649,1757133055847,-151.0,0.0007,120]
[383823650,1757133055858,-151.0,0.0007,120]
[383823651,1757133055868,-4758.255128,0.0007,30]
[383823652,1757133055888,-151.0,0.0007,120]
[383823653,1757133055898,-4758.255128,0.0007,30]
[383823654,1757133055908,-151.0,0.0007,120]
[383823655,1757133055919,-4758.255128,0.0007,30]
[383823656,1757133055929,-4758.255128,0.0007,30]
[383823657,1757133055939,-4758.255128,0.0007,30]
[383823658,1757133055949,-4758.255128,0.0007,30]
[383823659,1757133055959,-4758.255128,0.0007,30]
[383823660,1757133055968,-4758.255124,0.0007,30]
[383823661,1757133055978,-150.0,0.0007,2]
[383823662,1757133055989,-151.0,0.0007,120]
[383823663,1757133055999,-151.0,0.0007,120]
[383823664,1757133056009,-207.598229,0.0007,120]
[383823665,1757133056019,-207.598229,0.0007,120]
[383823666,1757133056028,-207.598229,0.0007,120]
[383823667,1757133056038,-207.598236,0.0007,120]
[383823668,1757133056048,-155.0,0.0007,120]
[383823669,1757133056057,-157.7458438,0.0007,120]
[383823670,1757133056067,-166.0,0.0007,120]
[383823671,1757133056076,-152.0,0.0007,120]
[383823672,1757133056086,-166.0,0.0007,120]
[383823673,1757133056095,-152.0,0.0007,120]
[383823674,1757133056105,-166.0,0.0007,120]
[383823675,1757133056114,-166.27730878,0.0007,120]
[383823676,1757133056124,-6054.40621162,0.0007,120]
[383823677,1757133056133,-202.49975327,0.0007,120]
[383823678,1757133056142,-1000.0,0.0007,120]
[383823679,1757133056152,-792.45962705,0.00070247,120]
[383823680,1757133056162,-199.0,0.00070269,49]
[383823681,1757133056171,-792.45962705,0.00070424,120]
[383823682,1757133056181,-1444.72785,0.0007045,120]
[383823683,1757133056191,-249.52,0.00070592,14]
[383823684,1757133056201,-168.97,0.00070863,2]
[383823685,1757133056211,-792.45962709,0.00070894,120]
[383823686,1757133056222,-420.57,0.000709,60]
[383823687,1757133056232,-1444.72785,0.0007095,120]
[383823688,1757133056241,-199.0,0.00070954,51]
[383823689,1757133056251,-2000.0,0.00071,120]
[383823690,1757133056260,-150.0,0.00071,60]
[383823691,1757133056270,-5000.0,0.00071,120]
[383823692,1757133056281,-320.74051982,0.00071185,2]
[383823693,1757133056290,-6349.0,0.00071424,60]
[383823694,1757133056301,-1444.72785,0.0007145,120]
[383823695,1757133056310,-1623.02,0.000715,30]
[383823696,1757133056320,-199.0,0.00071639,53]
[383823697,1757133056330,-5047.01,0.000717,30]
[383823698,1757133056339,-500.0,0.00071793,120]
[383823699,1757133056351,-5000.0,0.00072,120]
[383823700,1757133056365,-278.0,0.0007225,30]
[383823701,1757133056375,-199.0,0.00072324,55]
[383823702,1757133056385,-332.60791905,0.00072554,2]
[383823703,1757133056395,-1531.0,0.000726,14]
[383823704,1757133056404,-170.0,0.00072925,120]
[383823705,1757133056414,-168.0,0.00072947,7]
[383823706,1757133056423,-2000.0,0.00073,120]
[383823707,1757133056434,-5000.0,0.00073,120]
[383823708,1757133056444,-150.0,0.00073,60]
[383823709,1757133056453,-199.0,0.00073009,57]
[383823710,1757133056463,-204.55335165,0.0007307,120]
[383823711,1757133056472,-160.7891279,0.0007307,120]
[383823712,1757133056482,-252.90497398,0.0007307,120]
[383823713,1757133056492,-1000.0,0.00073125,90]
[383823714,1757133056502,-220.83,0.00073252,120]
[383823715,1757133056511,-715.81844953,0.0007331,120]
[383823716,1757133056521,-200.0,0.00073365,7]
[383823717,1757133056531,-386.14770532,0.00073468,2]
[383823718,1757133056540,-424.41,0.000735,7]
[383823719,1757133056550,-358.33744028,0.00073507,90]
[383823720,1757133056559,-168.0,0.00073536,2]
[383823721,1757133056568,-160.0,0.000736,120]
[383823722,1757133056580,-199.0,0.00073693,59]
[383823723,1757133056590,-263.74567513,0.000737,120]
[383823724,1757133056599,-420.49912939,0.00073758,120]
[383823725,1757133056608,-300.0,0.00073758,60]
[383823726,1757133056618,-666.0,0.00073758,120]
[383823727,1757133056627,-300.0,0.00073758,60]
[383823728,1757133056637,-50000.0,0.00073759,120]
[383823729,1757133056646,-5000.0,0.000739,120]
[383823730,1757133056656,-344.91441206,0.00073923,2]
[383823731,1757133056666,-300.0,0.00073999,60]
[383823732,1757133056680,-300.0,0.00073999,60]
[383823733,1757133056689,-57678.07545598,0.00074,120]
[383823734,1757133056699,-5000.0,0.00074,120]
[383823735,1757133056709,-1000.0,0.00074,14]
[383823736,1757133056719,-420.57,0.00074,60]
[383823737,1757133056728,-3009.3,0.00074,120]
[383823738,1757133056737,-200.0,0.00074071,2]
[383823739,1757133056746,-330.34524909,0.00074489,28]
[383823740,1757133056756,-150.0,0.0007449,120]
[383823741,1757133056765,-168.97,0.00074558,2]
[383823742,1757133056774,-202.46647444,0.0007464,2]
[383823743,1757133056783,-203.81733743,0.0007464,2]
[383823744,1757133056796,-202.55734374,0.0007464,2]
[383823745,1757133056805,-1182.0,0.000747,14]
[383823746,1757133056815,-6650.0065463,0.00074846,7]
[383823747,1757133056825,-2000.0,0.00075,120]
[383823748,1757133056834,-1201.70335032,0.00075,120]
[383823749,1757133056844,-2003.96,0.00075,90]
[383823750,1757133056855,-341.88,0.00075,90]
[383823751,1757133056864,-2000.02,0.00075,90]
[383823752,1757133056874,-211.09,0.00075,120]
[383823753,1757133056885,-5000.0,0.00075,120]
[383823754,1757133056895,-278.0,0.0007502,30]
[383823755,1757133056905,-357.6762453,0.00075292,2]
[383823756,1757133056914,-382.0,0.00075724,30]
[383823757,1757133056924,-1500.0,0.000759,120]
[383823758,1757133056933,-9084.63126558,0.00076,120]
[383823759,1757133056943,-5000.0,0.00076,120]
[383823760,1757133056953,-207.515,0.00076092,120]
[383823761,1757133056962,-500.0,0.000761,120]
[383823762,1757133056972,-218.04,0.000763,120]
[383823763,1757133056982,-4277.18,0.000763,120]
[383823764,1757133056992,-166.65,0.00076396,120]
[383823765,1757133057001,-382.0,0.00076459,120]
[383823766,1757133057011,-370.91026638,0.00076661,2]
[383823767,1757133057023,-533.43652247,0.000768,120]
[383823768,1757133057033,-729.0,0.00076815,60]
[383823769,1757133057043,-150.0,0.00076871,120]
[383823770,1757133057052,-150.0,0.000769,2]
[383823771,1757133057062,-2000.0,0.00077,120]
[383823772,1757133057073,-5000.0,0.00077,120]
[383823773,1757133057084,-220.83,0.00077001,120]
[383823774,1757133057094,-353.67,0.000772,14]
[383823775,1757133057103,-150.0,0.00077216,120]
[383823776,1757133057114,-13760.25239641,0.00077227,120]
[383823777,1757133057123,-150.0,0.0007737,2]
[383823778,1757133057133,-383.0,0.00077527,7]
[383823779,1757133057143,-729.0,0.00077607,60]
[383823780,1757133057153,-383.0,0.0007762,120]
[383823781,1757133057163,-278.0,0.0007778,30]
[383823782,1757133057173,-152.0,0.00077782,3]
[383823783,1757133057183,-150.0,0.0007784,2]
[383823784,1757133057194,-200.0,0.000779,28]
[383823785,1757133057203,-400.0,0.00077998,120]
[383823786,1757133057214,-5000.0,0.00078,120]
[383823787,1757133057225,-384.63394623,0.0007803,2]
[383823788,1757133057235,-1309.87253443,0.0007817,120]
[383823789,1757133057245,-168.97,0.00078254,2]
[383823790,1757133057254,-168.0,0.00078276,2]
[383823791,1757133057264,-150.0,0.0007831,2]
[383823792,1757133057274,-729.0,0.00078399,60]
[383823793,1757133057284,-5047.01,0.000784,30]
[383823794,1757133057295,-1623.02,0.000784,30]
[383823795,1757133057306,-16175.41188414,0.000785,120]
[383823796,1757133057316,-200.0,0.0007853,30]
[383823797,1757133057326,-386.14770532,0.00078543,2]
[383823798,1757133057336,-160.0,0.000787,120]
[383823799,1757133057347,-150.0,0.0007879,2]
[383823800,1757133057358,-9481.8069733,0.00078937,9]
[383823801,1757133057368,-2000.0,0.00079,120]
[383823802,1757133057378,-5000.0,0.00079,120]
[383823803,1757133057387,-153.97345963,0.00079,120]
[383823804,1757133057397,-2914.95,0.00079,120]
[383823805,1757133057407,-5000.0,0.00079,120]
[383823806,1757133057417,-172.71551549,0.0007909,7]
[383823807,1757133057428,-729.0,0.00079191,60]
[383823808,1757133057438,-204.67371777,0.00079191,60]
[383823809,1757133057450,-500.0,0.00079197,120]
[383823810,1757133057460,-150.0,0.0007926,2]
[383823811,1757133057470,-398.86540225,0.00079399,2]
[383823812,1757133057480,-1659.0,0.000795,120]
[383823813,1757133057490,-400.0,0.00079699,120]
[383823814,1757133057500,-150.0,0.0007973,2]
[383823815,1757133057510,-2680.98661571,0.00079749,100]
[383823816,1757133057520,-1144.29194852,0.000798,120]
[383823817,1757133057530,-481.25383179,0.00079876,90]
[383823818,1757133057540,-300.0,0.00079899,60]
[383823819,1757133057550,-631.31439438,0.000799,120]
[383823820,1757133057561,-173971.7485556,0.000799,120]
[383823821,1757133057571,-2578.44496138,0.000799,120]
[383823822,1757133057582,-151.0,0.000799,120]
[383823823,1757133057592,-151.0,0.000799,120]
[383823824,1757133057602,-151.0,0.000799,120]
[383823825,1757133057612,-151.0,0.000799,120]
[383823826,1757133057623,-601.76855,0.000799,120]
[383823827,1757133057633,-601.76855,0.000799,120]
[383823828,1757133057643,-601.76855,0.000799,120]
[383823829,1757133057652,-601.768551,0.000799,120]
[383823830,1757133057663,-151.0,0.000799,120]
[383823831,1757133057673,-151.0,0.000799,120]
[383823832,1757133057683,-151.0,0.000799,120]
[383823833,1757133057693,-151.0,0.000799,120]
[383823834,1757133057704,-151.0,0.000799,120]
[383823835,1757133057715,-5484.219532,0.00079935,9]
[383823836,1757133057724,-729.0,0.00079983,60]
[383823837,1757133057734,-2505.0,0.0007999,120]
[383823838,1757133057744,-2505.0,0.0007999,120]
[383823839,1757133057755,-2505.0,0.0007999,120]
[383823840,1757133057764,-2505.0,0.0007999,120]
[383823841,1757133057774,-2505.0,0.0007999,120]
[383823842,1757133057783,-2505.0,0.0007999,120]
[383823843,1757133057793,-2505.0,0.0007999,120]
[383823844,1757133057804,-2505.0,0.0007999,120]
[383823845,1757133057815,-2505.0,0.0007999,120]
[383823846,1757133057825,-2505.0,0.0007999,120]
[383823847,1757133057955,-296.44949978,0.00079999,120]
[383823848,1757133057965,-200.0,0.0008,8]
[383823849,1757133057974,-15686.81529649,0.0008,30]
[383823850,1757133057984,-187452.06131136,0.0008,2]
[383823851,1757133057994,-6861.0205555,0.0008,120]
[383823852,1757133058003,-200.0,0.0008,120]
[383823853,1757133058013,-5000.0,0.0008,120]
[383823854,1757133058023,-1623.02,0.0008,30]
[383823855,1757133058033,-156.51993556,0.0008,120]
[383823856,1757133058043,-335.26663963,0.000801,30]
[383823857,1757133058053,-9357.5506234,0.00080139,9]
[383823858,1757133058063,-150.0,0.000802,2]
[383823859,1757133058073,-5047.01,0.000802,30]
[383823860,1757133058083,-816.0,0.00080204,2]
[383823861,1757133058093,-825.705,0.00080204,2]
[383823862,1757133058103,-899.972,0.00080204,120]
[383823863,1757133058113,-2043.093,0.00080204,120]
[383823864,1757133058123,-1264.766,0.00080204,120]
[383823865,1757133058132,-3401.872,0.00080204,120]
[383823866,1757133058142,-928.222,0.00080204,120]
[383823867,1757133058152,-4164.0,0.00080204,120]
[383823868,1757133058161,-26518.3501938,0.00080245,9]
[383823869,1757133058171,-286.84,0.0008026,120]
[383823870,1757133058180,-383.0,0.00080292,2]
[383823871,1757133058190,-278.0,0.0008055,30]
[383823872,1757133058200,-383.0,0.0008059,30]
[383823873,1757133058209,-150.0,0.0008067,2]
[383823874,1757133058220,-220.83,0.0008075,120]
[383823875,1757133058230,-729.0,0.00080775,60]
[383823876,1757133058240,-2115.6771084,0.00080934,10]
[383823877,1757133058250,-4318.4325176,0.00080945,10]
[383823878,1757133058260,-153.0,0.00080956,13]
[383823879,1757133058270,-100145.34430167,0.00081,120]
[383823880,1757133058280,-2000.0,0.00081,120]
[383823881,1757133058290,-10000.0,0.00081,120]
[383823882,1757133058300,-420.57,0.00081,60]
[383823883,1757133058309,-500.0,0.00081132,120]
[383823884,1757133058319,-150.0,0.0008114,2]
[383823885,1757133058328,-150.0,0.0008116,120]
[383823886,1757133058338,-3011.17,0.000814,120]
[383823887,1757133058348,-729.0,0.00081567,60]
[383823888,1757133058362,-3054.0,0.00081575,120]
[383823889,1757133058372,-150.0,0.0008161,2]
[383823890,1757133058382,-907.06148988,0.00081913,120]
[383823891,1757133058392,-10000.0,0.00082,120]
[383823892,1757133058403,-150.0,0.0008209,2]
[383823893,1757133058413,-1000.0,0.00082191,120]
[383823894,1757133058423,-1000.0,0.00082191,120]
[383823895,1757133058433,-493.71,0.00082191,120]
[383823896,1757133058443,-2087.9517691,0.00082423,10]
[383823897,1757133058453,-5917.0437256,0.00082532,10]
[383823898,1757133058463,-150.0,0.0008256,2]
[383823899,1757133058473,-500.0,0.00082787,120]
[383823900,1757133058484,-2000.0,0.00083,120]
[383823901,1757133058494,-1000.0,0.00083,120]
[383823902,1757133058504,-10000.0,0.00083,120]
[383823903,1757133058513,-150.0,0.0008303,2]
[383823904,1757133058523,-430.9,0.0008305,120]
[383823905,1757133058532,-430.901,0.0008305,120]
[383823906,1757133058542,-430.9,0.0008305,120]
[383823907,1757133058551,-430.9,0.0008305,120]
[383823908,1757133058561,-430.9,0.0008305,120]
[383823909,1757133058571,-150.0,0.00083183,2]
[383823910,1757133058581,-150.0,0.00083183,2]
[383823911,1757133058592,-150.287,0.00083183,120]
[383823912,1757133058602,-150.151,0.00083183,120]
[383823913,1757133058611,-178.357,0.00083183,120]
[383823914,1757133058621,-150.0,0.00083183,120]
[383823915,1757133058631,-150.0,0.00083183,2]
[383823916,1757133058640,-150.154,0.00083183,120]
[383823917,1757133058651,-811.0,0.00083204,2]
[383823918,1757133058662,-2035.0,0.00083204,120]
[383823919,1757133058672,-1258.0,0.00083204,120]
[383823920,1757133058681,-924.0,0.00083204,120]
[383823921,1757133058691,-4164.0,0.00083204,120]
[383823922,1757133058702,-278.0,0.0008331,30]
[383823923,1757133058712,-150.0,0.000835,2]
[383823924,1757133058721,-150.0,0.00083507,120]
[383823925,1757133058732,-386.14770532,0.00083617,2]
[383823926,1757133058741,-500.0,0.00083676,120]
[383823927,1757133058751,-179.00529582,0.00083698,120]
[383823928,1757133058761,-160.0,0.000838,120]
[383823929,1757133058771,-150.0,0.0008397,2]
[383823930,1757133058781,-10000.0,0.00084,120]
[383823931,1757133058790,-150.0,0.00084143,120]
[383823932,1757133058800,-500.0,0.00084316,120]
[383823933,1757133058809,-150.0,0.0008444,2]
[383823934,1757133058819,-220.83,0.00084499,120]
[383823935,1757133058829,-330.34524909,0.00084607,28]
[383823936,1757133058838,-150.0,0.0008491,2]
[383823937,1757133058847,-3000.0,0.00085,120]
[383823938,1757133058856,-1021.0,0.00085,120]
[383823939,1757133058866,-10000.0,0.00085,120]
[383823940,1757133058877,-20000.0,0.00085,120]
[383823941,1757133058886,-1561.61,0.000853,120]
[383823942,1757133058896,-250.0,0.0008539,2]
[383823943,1757133058906,-32746.70160831,0.000859,120]
[383823944,1757133058916,-10000.0,0.00086,120]
[383823945,1757133058927,-278.0,0.0008608,30]
[383823946,1757133058937,-166.65,0.00086177,120]
[383823947,1757133058947,-150.0,0.00086183,120]
[383823948,1757133058957,-150.0,0.00086183,120]
[383823949,1757133058966,-150.0,0.00086183,120]
[383823950,1757133058975,-150.0,0.00086183,2]
[383823951,1757133058985,-150.0,0.00086183,120]
[383823952,1757133058995,-2035.0,0.00086204,120]
[383823953,1757133059004,-1258.0,0.00086204,120]
[383823954,1757133059014,-924.0,0.00086204,120]
[383823955,1757133059024,-4164.0,0.00086204,120]
[383823956,1757133059034,-213.0,0.0008663,120]
[383823957,1757133059044,-3000.0,0.00087,120]
[383823958,1757133059053,-10000.0,0.00087,120]
[383823959,1757133059063,-230.022598,0.00087074,120]
[383823960,1757133059073,-152.0,0.00087404,4]
[383823961,1757133059083,-150.0,0.00087662,120]
[383823962,1757133059093,-501.26150102,0.00087764,120]
[383823963,1757133059102,-1710.61727988,0.000878,120]
[383823964,1757133059111,-150.0,0.00087823,120]
[383823965,1757133059121,-10000.0,0.00088,120]